Workbook

Sheet CapacidadRectangular
B1: Capacidad en canales
A3: Tema: | B3: Canales | H3: Alumno:
A5: Dibujar la curva de capacidad de cualquier canal rectangular independientemente de su anchura
A7: Solución
A9: Dibujo de la curva de capacidad del canal
A10: Incb | B10: 0.05
A11: b = y/b | B11: k(y) / b8/3 | D11: Caudal de régimen uniforme | G11: Q | H11: =Principal!G21 -> 12 | I11: m3/s
A12: =B10 -> 0.05 | B12: =A12 * (A12/ (1+2*A12) )^(2/3) -> 0.006368271206 | D12: Ancho del canal | G12: b | H12: =Principal!F17 -> 6 | I12: m
A13: =A12+$B$10 -> 0.1 | B13: =A13 * (A13/ (1+2*A13) )^(2/3) -> 0.01907857071 | D13: Pendiente del canal | G13: Io | H13: 0.000246 | I13: - | K13: Interpolación lineal
A14: 0.15 | B14: 0.03555138547 | D14: Número de Manning | G14: n | H14: 0.011 | K14: Posición | L14: Ordenada | M14: Abscisa
A15: 0.2 | B15: 0.05465517665 | D15: Abscisa del gráfico | G15: k(y) / b8/3 | H15: =H11*H14/SQRT(H13) / H12^(8/3) -> 0.07080050846 | I15: - | K15: =MATCH(H$15,$B$12:$B$41,1) -> 4 | L15: =INDEX(A$12:A$41,$K15) -> 0.2 | M15: =INDEX(B$12:B$41,$K15) -> 0.05465517665
A16: 0.25 | B16: 0.07571335803 | D16: Ordenada del gráfico | G16: y/b | H16: =(H15-M15) / (M16-M15) * (L16-L15) + L15 -> 0.2383350573 | I16: - | K16: =K15+1 -> 5 | L16: =INDEX(A$12:A$41,$K16) -> 0.25 | M16: =INDEX(B$12:B$41,$K16) -> 0.07571335803
A17: 0.3 | B17: 0.09827780228 | D17: Calado correspondiente | G17: y | H17: =H16*H12 -> 1.430010344 | I17: m
A18: 0.35 | B18: 0.1220339849 | L18: Líneas del gráfico
A19: 0.4 | B19: 0.1467523222 | L19: x | M19: y
A20: 0.45 | B20: 0.1722602695 | L20: 0 | M20: =H16 -> 0.2383350573
A21: 0.5 | B21: 0.1984251315 | L21: =H15 -> 0.07080050846 | M21: =H16 -> 0.2383350573
A22: 0.55 | B22: 0.2251429157 | L22: =H15 -> 0.07080050846 | M22: 0
A23: 0.6 | B23: 0.2523308187
A24: 0.65 | B24: 0.279922003
A25: 0.7 | B25: 0.3078618718
A26: 0.75 | B26: 0.336105356
A27: 0.8 | B27: 0.3646149007
A28: 0.85 | B28: 0.3933589476
A29: 0.9 | B29: 0.4223107742
A30: 0.95 | B30: 0.4514475948
A31: 1 | B31: 0.4807498568
A32: 1.05 | B32: 0.5102006833
A33: 1.1 | B33: 0.5397854282
A34: 1.15 | B34: 0.5694913177
A35: 1.2 | B35: 0.5993071587
A36: 1.25 | B36: 0.6292231011
A37: 1.3 | B37: 0.6592304409
A38: 1.35 | B38: 0.6893214583
A39: 1.4 | B39: 0.7194892814
A40: 1.45 | B40: 0.7497277727
A41: 1.5 | B41: 0.7800314336

Sheet Principal
B1: Intersección de 2 pendientes indefinidas en canal rectangular | L1: Intersección de 2 pendientes indefinidas en canal rectangular | U1: Para utilizar este libro correctamente es necesario tener habilitadas las macros de Visual Basic
A3: Tema: | B3: Canales | K3: Tema: | L3: Canales | U3: Excel 2010:
A4: Autor: | B4: Jaime García Palacios | H4: Alumno: | K4: Autor: | L4: Jaime García Palacios | R4: Alumno: | S4: =IF(I4=0,"",I4) ->  | V4: Archivo | X4: Opciones | Z4: Centro de Confianza
V5: Botón de configuración del centro de confianza
A6: Enunciado | H6: (Asegurarse de habilitar las macros) | K6: Mínima distancia a representar de cada tramo | P6: Lmin | Q6: 60 | R6: m | V6: Deshabilitar todas las macros con notificación | AA6: (Habilitarlas al abrir este libro)
A8: ="Por un canal rectangular indefinido en ambos sentidos, de " & F17 & " m de ancho con pendientes " & F18 & " y " & G18 & " respectivamente, circulan " & G21 & " m3/s. Suponiendo un número de Manning de " & F19 & ". Calcular:" -> Por un canal rectangular indefinido en ambos sentidos, de 6 m de ancho con pendientes 0.001 y 0.002 respectivamente, circulan 12 m3/s. Suponiendo un número de Manning de 0.011. Calcular:
A9: 1.- Calado crítico, calado uniforme, velocidades de circulación y número de froude. | U9: Para utilizar este libro correctamente es necesario tener habilitadas las macros de Visual Basic
A10: 2.- Clasificar las pendientes.
A11: 3.- Determinar el calado conjugado del uniforme en ambas pendientes. | U11: Excel 2013:
A12: 4.- Dibujar la forma de la curva de remanso indicando el tipo de curva que se forma. | V12: Archivo | X12: Opciones | Z12: Centro de Confianza
A13: 5.- Integrar la curva de remanso. | V13: Botón de configuración del centro de confianza
V14: Configuración de macros
A15: Datos del problema | V15: Deshabilitar todas las macros con notificación | AA15: (Habilitarlas al abrir este libro)
F16: Tramo 1 | G16: Tramo 2
A17: Ancho del canal | E17: b | F17: 6 | G17: =F17 -> 6 | H17: m
A18: Pendiente del canal | E18: Io | F18: 0.001 | G18: 0.002 | H18: -
A19: Nº de Manning | E19: n | F19: 0.011 | G19: =F19 -> 0.011
G20: 5
A21: Caudal circulante por el canal | F21: Q | G21: 12 | H21: m3/s
A22: Densidad del agua | F22: ro | G22: 1000 | H22: kg/m3
A23: Gravedad de la tierra | F23: g | G23: 9.81 | H23: m/s2
A25: Resultados
A27: Peso específico del agua | F27: gama | G27: =G22*G23 -> 9810 | H27: N/m3
F29: Tramo 1 | G29: Tramo 2
A30: Calado unitario en el canal | E30: q | F30: =$G$21/F17 -> 2 | G30: =$G$21/G17 -> 2 | H30: m2/s
A31: Calado crítico en el canal | E31: yc | F31: =(F30^2/$G$23)^(1/3) -> 0.7415327354 | G31: =(G30^2/$G$23)^(1/3) -> 0.7415327354 | H31: m
A32: Calado uniforme en el canal | E32: yu | F32: =miyuniforme($G$21,F17,F19,F18) -> 0.8926998775 | G32: =miyuniforme($G$21,G17,G19,G18) -> 0.711395303 | H32: m
A33: Velocidad para calado uniforme | E33: v | F33: =$G$21/F17/F32 -> 2.240394617 | G33: =$G$21/G17/G32 -> 2.811376448 | H33: m/s
A34: Número de froude al cuadrado | E34: F2 | F34: =F33^2/$G$23/F32 -> 0.5731582638 | G34: =G33^2/$G$23/G32 -> 1.132551615 | H34: - | P34: Calados límite
A35: Número de Froude | E35: F | F35: =SQRT(F34) -> 0.7570721655 | G35: =SQRT(G34) -> 1.064214083 | H35: - | K35: Caso | L35: Pedientes | N35: Tipo curva remanso | P35: Tramo 1 | R35: Tramo 2
A36: Tipo de pendiente en el canal | E36: Pend | F36: =IF(F35<1,"Suave", "Fuerte") -> Suave | G36: =IF(G35<1,"Suave", "Fuerte") -> Fuerte | K36: actual | L36: Tramo 1 | M36: Tramo 2 | N36: Tramo 1 | O36: Tramo 2 | P36: yini | Q36: yfin | R36: yini | S36: yfin
A37: Calado conjugado del uniforme | E37: yuc | F37: =F32/2*(SQRT(1+8*F34)-1) -> 0.6085163525 | G37: =G32/2*(SQRT(1+8*G34)-1) -> 0.7725096366 | H37: m | K37: =IF(AND(L37=$F$36, M37=$G$36),1,0) -> 0 | L37: Suave | M37: Suave | N37: S2 ó S1 | O37: - | P37: =G32 -> 0.711395303 | Q37: =F32 -> 0.8926998775 | R37: =G32 -> 0.711395303 | S37: =G32 -> 0.711395303
K38: =IF(AND(L38=$F$36, M38=$G$36),1,0) -> 1 | L38: Suave | M38: Fuerte | N38: S2 | O38: F2 | P38: =F31 -> 0.7415327354 | Q38: =F32 -> 0.8926998775 | R38: =G31 -> 0.7415327354 | S38: =G32 -> 0.711395303
A39: Datos para las curvas de remanso | F39: Izquierda | G39: Derecha | K39: 0 | L39: Fuerte | M39: Suave | N39: F1 ó - | O39: - ó S3 | P39: =G32 -> 0.711395303 | Q39: =MIN(G32,F37) -> 0.6085163525 | R39: =F32 -> 0.8926998775 | S39: =MAX(F32, G37) -> 0.8926998775
A40: Ancho del canal rectángular | E40: b | F40: =F17 -> 6 | G40: =G17 -> 6 | H40: m | K40: 0 | L40: Fuerte | M40: Fuerte | N40: - | O40: F2 ó F3 | P40: =F32 -> 0.8926998775 | Q40: =F32 -> 0.8926998775 | R40: =F32 -> 0.8926998775 | S40: =G32 -> 0.711395303
A41: Caudal circulante por el canal | E41: Q | F41: =$G$21 -> 12 | G41: =$G$21 -> 12 | H41: m3/s | K41: Cuando no hay curva en uno de los lados se pone yini e yfin iguales al uniforme en la sección
A42: Número de Manning | E42: n | F42: =F19 -> 0.011 | G42: =G19 -> 0.011
A43: Pendiente geométrica canal | E43: I0 | F43: =F18 -> 0.001 | G43: =G18 -> 0.002 | H43: - | K43: Factor de multiplicación
A44: Calado Y al comienzo de la curva | E44: yini | F44: =INDEX($P$37:$P$40,MATCH(1,$K$37:$K$40,0)) -> 0.7415327354 | G44: =INDEX($R$37:$R$40,MATCH(1,$K$37:$K$40,0)) -> 0.7415327354 | H44: m | K44: tramo recto a la derecha
A45: Calado Y al final de la curva | E45: yfin | F45: =INDEX($Q$37:$Q$40,MATCH(1,$K$37:$K$40,0)) -> 0.8926998775 | G45: =INDEX($S$37:$S$40,MATCH(1,$K$37:$K$40,0)) -> 0.711395303 | H45: m | K45: DL | L45: 1.1
A46: Tipo de curva de remanso | F46: =IF(F44=F45,"No hay", CurvaRemansoIzq!M8) -> S2 | G46: =IF(G44=G45,"No hay",CurvaRemansoDer!M8) -> F2
A48: Datos para el gráfico
A50: Curvas de remanso | G50: Régimen uniforme
A51: Tramo 1 | D51: Tramo 2 | G51: Tramo 1 | I51: Tramo 2
A52: x | B52: y1 | C52: yc1 | D52: x | E52: y2 | F52: yc2 | G52: x | H52: yu1= | I52: x | J52: yu2=
A53: =CurvaRemansoIzq!O12 -> 0 | B53: =CurvaRemansoIzq!A12 -> 0.7415327354 | C53: =CurvaRemansoIzq!M12 -> 0.7415327354 | D53: =CurvaRemansoDer!O12 -> 0 | E53: =CurvaRemansoDer!A12 -> 0.7415327354 | F53: =CurvaRemansoDer!M12 -> 0.7415327354 | G53: =MIN(-$Q$6,$A$93) -> -582.25735 | H53: =F32 -> 0.8926998775 | I53: =MAX(0,$D$93) -> 71.32500513 | J53: =G32 -> 0.711395303
A54: =CurvaRemansoIzq!O13 -> -0.03841807027 | B54: =CurvaRemansoIzq!A13 -> 0.745311914 | C54: =CurvaRemansoIzq!M13 -> 0.7377663537 | D54: =CurvaRemansoDer!O13 -> 0.004857888525 | E54: =CurvaRemansoDer!A13 -> 0.7407792996 | F54: =CurvaRemansoDer!M13 -> 0.7422866819 | G54: =MIN(0,$A$93) -> -582.25735 | H54: =F32 -> 0.8926998775 | I54: =$L$45*MAX($Q$6,$D$93) -> 78.45750564 | J54: =G32 -> 0.711395303
A55: =CurvaRemansoIzq!O14 -> -0.1569190684 | B55: =CurvaRemansoIzq!A14 -> 0.7490910925 | C55: =CurvaRemansoIzq!M14 -> 0.7340253932 | D55: =CurvaRemansoDer!O14 -> 0.01980611773 | E55: =CurvaRemansoDer!A14 -> 0.7400258638 | F55: =CurvaRemansoDer!M14 -> 0.7430416512
A56: =CurvaRemansoIzq!O15 -> -0.3599356241 | B56: =CurvaRemansoIzq!A15 -> 0.7528702711 | C56: =CurvaRemansoIzq!M15 -> 0.7303095988 | D56: =CurvaRemansoDer!O15 -> 0.04538201652 | E56: =CurvaRemansoDer!A15 -> 0.739272428 | F56: =CurvaRemansoDer!M15 -> 0.7437976454 | G56: Régimen uniforme continuación
A57: =CurvaRemansoIzq!O16 -> -0.6522628832 | B57: =CurvaRemansoIzq!A16 -> 0.7566494496 | C57: =CurvaRemansoIzq!M16 -> 0.7266187196 | D57: =CurvaRemansoDer!O16 -> 0.08216707319 | E57: =CurvaRemansoDer!A16 -> 0.7385189922 | F57: =CurvaRemansoDer!M16 -> 0.7445546665 | G57: Tramo 1 | I57: Tramo 2
A58: =CurvaRemansoIzq!O17 -> -1.039099377 | B58: =CurvaRemansoIzq!A17 -> 0.7604286282 | C58: =CurvaRemansoIzq!M17 -> 0.7229525085 | D58: =CurvaRemansoDer!O17 -> 0.1307919112 | E58: =CurvaRemansoDer!A17 -> 0.7377655564 | F58: =CurvaRemansoDer!M17 -> 0.7453127167 | G58: x | H58: yu1= | I58: x | J58: yu2=
A59: =CurvaRemansoIzq!O18 -> -1.526093811 | B59: =CurvaRemansoIzq!A18 -> 0.7642078067 | C59: =CurvaRemansoIzq!M18 -> 0.719310723 | D59: =CurvaRemansoDer!O18 -> 0.191941986 | E59: =CurvaRemansoDer!A18 -> 0.7370121206 | F59: =CurvaRemansoDer!M18 -> 0.746071798 | G59: =G54 -> -582.25735 | H59: =H53 -> 0.8926998775 | I59: 0 | J59: =J53 -> 0.711395303
A60: =CurvaRemansoIzq!O19 -> -2.119398839 | B60: =CurvaRemansoIzq!A19 -> 0.7679869853 | C60: =CurvaRemansoIzq!M19 -> 0.7156931241 | D60: =CurvaRemansoDer!O19 -> 0.2663641323 | E60: =CurvaRemansoDer!A19 -> 0.7362586847 | F60: =CurvaRemansoDer!M19 -> 0.7468319127 | G60: 0 | H60: =H53 -> 0.8926998775 | I60: =I53 -> 71.32500513 | J60: =J54 -> 0.711395303
A61: =CurvaRemansoIzq!O20 -> -2.82573311 | B61: =CurvaRemansoIzq!A20 -> 0.7717661638 | C61: =CurvaRemansoIzq!M20 -> 0.7120994769 | D61: =CurvaRemansoDer!O20 -> 0.3548741185 | E61: =CurvaRemansoDer!A20 -> 0.7355052489 | F61: =CurvaRemansoDer!M20 -> 0.7475930627
A62: =CurvaRemansoIzq!O21 -> -3.652453156 | B62: =CurvaRemansoIzq!A21 -> 0.7755453424 | C62: =CurvaRemansoIzq!M21 -> 0.7085295502 | D62: =CurvaRemansoDer!O21 -> 0.4583654005 | E62: =CurvaRemansoDer!A21 -> 0.7347518131 | F62: =CurvaRemansoDer!M21 -> 0.7483552503 | G62: Régimen crítico
A63: =CurvaRemansoIzq!O22 -> -4.607637074 | B63: =CurvaRemansoIzq!A22 -> 0.7793245209 | C63: =CurvaRemansoIzq!M22 -> 0.7049831165 | D63: =CurvaRemansoDer!O22 -> 0.5778193098 | E63: =CurvaRemansoDer!A22 -> 0.7339983773 | F63: =CurvaRemansoDer!M22 -> 0.7491184775 | G63: Tramo 1 | I63: Tramo 2
A64: =CurvaRemansoIzq!O23 -> -5.700182379 | B64: =CurvaRemansoIzq!A23 -> 0.7831036995 | C64: =CurvaRemansoIzq!M23 -> 0.7014599518 | D64: =CurvaRemansoDer!O23 -> 0.7143169696 | E64: =CurvaRemansoDer!A23 -> 0.7332449415 | F64: =CurvaRemansoDer!M23 -> 0.7498827465 | G64: x | H64: yc1= | I64: x | J64: yc2=
A65: =CurvaRemansoIzq!O24 -> -6.939921032 | B65: =CurvaRemansoIzq!A24 -> 0.786882878 | C65: =CurvaRemansoIzq!M24 -> 0.6979598359 | D65: =CurvaRemansoDer!O24 -> 0.8690533009 | E65: =CurvaRemansoDer!A24 -> 0.7324915057 | F65: =CurvaRemansoDer!M24 -> 0.7506480595 | G65: =MIN(-$Q$6,$A$93) -> -582.25735 | H65: =F31 -> 0.7415327354 | I65: 0 | J65: =G31 -> 0.7415327354
A66: =CurvaRemansoIzq!O25 -> -8.337755374 | B66: =CurvaRemansoIzq!A25 -> 0.7906620566 | C66: =CurvaRemansoIzq!M25 -> 0.6944825517 | D66: =CurvaRemansoDer!O25 -> 1.043353575 | E66: =CurvaRemansoDer!A25 -> 0.7317380699 | F66: =CurvaRemansoDer!M25 -> 0.7514144186 | G66: 0 | H66: =F31 -> 0.7415327354 | I66: =$L$45*MAX($Q$6,$D$93) -> 78.45750564 | J66: =G31 -> 0.7415327354
A67: =CurvaRemansoIzq!O26 -> -9.905819707 | B67: =CurvaRemansoIzq!A26 -> 0.7944412351 | C67: =CurvaRemansoIzq!M26 -> 0.6910278858 | D67: =CurvaRemansoDer!O26 -> 1.238693088 | E67: =CurvaRemansoDer!A26 -> 0.7309846341 | F67: =CurvaRemansoDer!M26 -> 0.752181826
A68: =CurvaRemansoIzq!O27 -> -11.65767356 | B68: =CurvaRemansoIzq!A27 -> 0.7982204137 | C68: =CurvaRemansoIzq!M27 -> 0.6875956278 | D68: =CurvaRemansoDer!O27 -> 1.456720699 | E68: =CurvaRemansoDer!A27 -> 0.7302311983 | F68: =CurvaRemansoDer!M27 -> 0.7529502838 | G68: Régimen conjugado del uniforme
A69: =CurvaRemansoIzq!O28 -> -13.60853437 | B69: =CurvaRemansoIzq!A28 -> 0.8019995922 | C69: =CurvaRemansoIzq!M28 -> 0.6841855708 | D69: =CurvaRemansoDer!O28 -> 1.699287161 | E69: =CurvaRemansoDer!A28 -> 0.7294777624 | F69: =CurvaRemansoDer!M28 -> 0.7537197943 | G69: Tramo 1 | I69: Tramo 2
A70: =CurvaRemansoIzq!O29 -> -15.7755597 | B70: =CurvaRemansoIzq!A29 -> 0.8057787708 | C70: =CurvaRemansoIzq!M29 -> 0.6807975107 | D70: =CurvaRemansoDer!O29 -> 1.968479492 | E70: =CurvaRemansoDer!A29 -> 0.7287243266 | F70: =CurvaRemansoDer!M29 -> 0.7544903596 | G70: x | H70: yu1c= | I70: x | J70: yu2c=
A71: =CurvaRemansoIzq!O30 -> -18.17819217 | B71: =CurvaRemansoIzq!A30 -> 0.8095579494 | C71: =CurvaRemansoIzq!M30 -> 0.6774312469 | D71: =CurvaRemansoDer!O30 -> 2.266662978 | E71: =CurvaRemansoDer!A30 -> 0.7279708908 | F71: =CurvaRemansoDer!M30 -> 0.7552619818 | G71: =MIN(-$Q$6,$A$93) -> -582.25735 | H71: =F37 -> 0.6085163525 | I71: 0 | J71: =G37 -> 0.7725096366
A72: =CurvaRemansoIzq!O31 -> -20.8385845 | B72: =CurvaRemansoIzq!A31 -> 0.8133371279 | C72: =CurvaRemansoIzq!M31 -> 0.6740865814 | D72: =CurvaRemansoDer!O31 -> 2.59653294 | E72: =CurvaRemansoDer!A31 -> 0.727217455 | F72: =CurvaRemansoDer!M31 -> 0.7560346633 | G72: 0 | H72: =F37 -> 0.6085163525 | I72: =$L$45*MAX($Q$6,$D$93) -> 78.45750564 | J72: =G37 -> 0.7725096366
A73: =CurvaRemansoIzq!O32 -> -23.78212837 | B73: =CurvaRemansoIzq!A32 -> 0.8171163065 | C73: =CurvaRemansoIzq!M32 -> 0.6707633195 | D73: =CurvaRemansoDer!O32 -> 2.961179139 | E73: =CurvaRemansoDer!A32 -> 0.7264640192 | F73: =CurvaRemansoDer!M32 -> 0.7568084063
A74: =CurvaRemansoIzq!O33 -> -27.03811872 | B74: =CurvaRemansoIzq!A33 -> 0.820895485 | C74: =CurvaRemansoIzq!M33 -> 0.6674612692 | D74: =CurvaRemansoDer!O33 -> 3.364166687 | E74: =CurvaRemansoDer!A33 -> 0.7257105834 | F74: =CurvaRemansoDer!M33 -> 0.7575832128 | G74: Solera
A75: =CurvaRemansoIzq!O34 -> -30.64059769 | B75: =CurvaRemansoIzq!A34 -> 0.8246746636 | C75: =CurvaRemansoIzq!M34 -> 0.6641802413 | D75: =CurvaRemansoDer!O34 -> 3.809638828 | E75: =CurvaRemansoDer!A34 -> 0.7249571476 | F75: =CurvaRemansoDer!M34 -> 0.7583590853 | G75: Tramo 1 | I75: Tramo 2
A76: =CurvaRemansoIzq!O35 -> -34.62943953 | B76: =CurvaRemansoIzq!A35 -> 0.8284538421 | C76: =CurvaRemansoIzq!M35 -> 0.6609200495 | D76: =CurvaRemansoDer!O35 -> 4.302449084 | E76: =CurvaRemansoDer!A35 -> 0.7242037118 | F76: =CurvaRemansoDer!M35 -> 0.7591360258 | G76: x | H76: ys1 | I76: x | J76: ys2
A77: =CurvaRemansoIzq!O36 -> -39.05176436 | B77: =CurvaRemansoIzq!A36 -> 0.8322330207 | C77: =CurvaRemansoIzq!M36 -> 0.65768051 | D77: =CurvaRemansoDer!O36 -> 4.848333454 | E77: =CurvaRemansoDer!A36 -> 0.723450276 | F77: =CurvaRemansoDer!M36 -> 0.7599140367 | G77: =MIN(-$Q$6,$A$93) -> -582.25735 | H77: 0.001 | I77: 0 | J77: 0.001
A78: =CurvaRemansoIzq!O37 -> -43.96380781 | B78: =CurvaRemansoIzq!A37 -> 0.8360121992 | C78: =CurvaRemansoIzq!M37 -> 0.6544614419 | D78: =CurvaRemansoDer!O37 -> 5.454138157 | E78: =CurvaRemansoDer!A37 -> 0.7226968402 | F78: =CurvaRemansoDer!M37 -> 0.7606931201 | G78: 0 | H78: 0.001 | I78: =$L$45*MAX($Q$6,$D$93) -> 78.45750564 | J78: 0.001
A79: =CurvaRemansoIzq!O38 -> -49.43343532 | B79: =CurvaRemansoIzq!A38 -> 0.8397913778 | C79: =CurvaRemansoIzq!M38 -> 0.6512626667 | D79: =CurvaRemansoDer!O38 -> 6.128125909 | E79: =CurvaRemansoDer!A38 -> 0.7219434043 | F79: =CurvaRemansoDer!M38 -> 0.7614732784
A80: =CurvaRemansoIzq!O39 -> -55.54358751 | B80: =CurvaRemansoIzq!A39 -> 0.8435705563 | C80: =CurvaRemansoIzq!M39 -> 0.6480840084 | D80: =CurvaRemansoDer!O39 -> 6.880395641 | E80: =CurvaRemansoDer!A39 -> 0.7211899685 | F80: =CurvaRemansoDer!M39 -> 0.7622545139 | G80: Curvas de remanso (punto medio)
A81: =CurvaRemansoIzq!O40 -> -62.39710344 | B81: =CurvaRemansoIzq!A40 -> 0.8473497349 | C81: =CurvaRemansoIzq!M40 -> 0.6449252936 | D81: =CurvaRemansoDer!O40 -> 7.723470122 | E81: =CurvaRemansoDer!A40 -> 0.7204365327 | F81: =CurvaRemansoDer!M40 -> 0.7630368287 | G81: Tramo 1 | I81: Tramo 2
A82: =CurvaRemansoIzq!O41 -> -70.12364055 | B82: =CurvaRemansoIzq!A41 -> 0.8511289134 | C82: =CurvaRemansoIzq!M41 -> 0.6417863514 | D82: =CurvaRemansoDer!O41 -> 8.673139063 | E82: =CurvaRemansoDer!A41 -> 0.7196830969 | F82: =CurvaRemansoDer!M41 -> 0.7638202251 | G82: x | H82: =IF(F46="No hay","",F46) -> S2 | I82: x | J82: =IF(G46="No hay","",G46) -> F2
A83: =CurvaRemansoIzq!O42 -> -78.88988911 | B83: =CurvaRemansoIzq!A42 -> 0.854908092 | C83: =CurvaRemansoIzq!M42 -> 0.6386670131 | D83: =CurvaRemansoDer!O42 -> 9.749703737 | E83: =CurvaRemansoDer!A42 -> 0.7189296611 | F83: =CurvaRemansoDer!M42 -> 0.7646047056 | G83: =(A53+A93)/2 -> -291.128675 | H83: =(B53+B93)/2 -> 0.8171163065 | I83: =(D53+D93)/2 -> 35.66250256 | J83: =(E53+E93)/2 -> 0.7264640192
A84: =CurvaRemansoIzq!O43 -> -88.91516155 | B84: =CurvaRemansoIzq!A43 -> 0.8586872705 | C84: =CurvaRemansoIzq!M43 -> 0.6355671124 | D84: =CurvaRemansoDer!O43 -> 10.97987669 | E84: =CurvaRemansoDer!A43 -> 0.7181762253 | F84: =CurvaRemansoDer!M43 -> 0.7653902722
A85: =CurvaRemansoIzq!O44 -> -100.4961495 | B85: =CurvaRemansoIzq!A44 -> 0.8624664491 | C85: =CurvaRemansoIzq!M44 -> 0.6324864853 | D85: =CurvaRemansoDer!O44 -> 12.39979902 | E85: =CurvaRemansoDer!A44 -> 0.7174227895 | F85: =CurvaRemansoDer!M44 -> 0.7661769275 | G85: Resalto
A86: =CurvaRemansoIzq!O45 -> -114.0481807 | B86: =CurvaRemansoIzq!A45 -> 0.8662456276 | C86: =CurvaRemansoIzq!M45 -> 0.62942497 | D86: =CurvaRemansoDer!O45 -> 14.06006928 | E86: =CurvaRemansoDer!A45 -> 0.7166693537 | F86: =CurvaRemansoDer!M45 -> 0.7669646736 | G86: Tramo 1
A87: =CurvaRemansoIzq!O46 -> -130.178202 | B87: =CurvaRemansoIzq!A46 -> 0.8700248062 | C87: =CurvaRemansoIzq!M46 -> 0.6263824069 | D87: =CurvaRemansoDer!O46 -> 16.03464113 | E87: =CurvaRemansoDer!A46 -> 0.7159159179 | F87: =CurvaRemansoDer!M46 -> 0.7677535128 | G87: x | H87: yres
A88: =CurvaRemansoIzq!O47 -> -149.8240832 | B88: =CurvaRemansoIzq!A47 -> 0.8738039847 | C88: =CurvaRemansoIzq!M47 -> 0.6233586386 | D88: =CurvaRemansoDer!O47 -> 18.4378106 | E88: =CurvaRemansoDer!A47 -> 0.715162482 | F88: =CurvaRemansoDer!M47 -> 0.7685434477 | G88: =IF(K39=1, IF(G46 = "S3", D93, A93), "") ->  | H88: =IF(K39=1, IF(G46 = "S3", G32, F32), "") -> 
A89: =CurvaRemansoIzq!O48 -> -174.5486293 | B89: =CurvaRemansoIzq!A48 -> 0.8775831633 | C89: =CurvaRemansoIzq!M48 -> 0.6203535097 | D89: =CurvaRemansoDer!O48 -> 21.46008031 | E89: =CurvaRemansoDer!A48 -> 0.7144090462 | F89: =CurvaRemansoDer!M48 -> 0.7693344803 | G89: =G88 ->  | H89: =IF(K39=1, IF(G46 = "S3", G37, F37), "") -> 
A90: =CurvaRemansoIzq!O49 -> -207.253349 | B90: =CurvaRemansoIzq!A49 -> 0.8813623418 | C90: =CurvaRemansoIzq!M49 -> 0.6173668669 | D90: =CurvaRemansoDer!O49 -> 25.45526635 | E90: =CurvaRemansoDer!A49 -> 0.7136556104 | F90: =CurvaRemansoDer!M49 -> 0.7701266132
A91: =CurvaRemansoIzq!O50 -> -254.3185218 | B91: =CurvaRemansoIzq!A50 -> 0.8851415204 | C91: =CurvaRemansoIzq!M50 -> 0.614398559 | D91: =CurvaRemansoDer!O50 -> 31.20185727 | E91: =CurvaRemansoDer!A50 -> 0.7129021746 | F91: =CurvaRemansoDer!M50 -> 0.7709198486
A92: =CurvaRemansoIzq!O51 -> -334.8665035 | B92: =CurvaRemansoIzq!A51 -> 0.8889206989 | C92: =CurvaRemansoIzq!M51 -> 0.6114484367 | D92: =CurvaRemansoDer!O51 -> 41.03588835 | E92: =CurvaRemansoDer!A51 -> 0.7121487388 | F92: =CurvaRemansoDer!M51 -> 0.771714189
A93: =CurvaRemansoIzq!O52 -> -582.25735 | B93: =CurvaRemansoIzq!A52 -> 0.8926998775 | C93: =CurvaRemansoIzq!M52 -> 0.6085163525 | D93: =CurvaRemansoDer!O52 -> 71.32500513 | E93: =CurvaRemansoDer!A52 -> 0.711395303 | F93: =CurvaRemansoDer!M52 -> 0.7725096366

Sheet CurvaRemansoIzq
A1: ="Curva " & M8 -> Curva S2
R2: Pendienes | S2: Curvas | V2: Limites | X2: x | Y2: yc | Z2: yu
A3: Ancho del canal rectángular | E3: b | F3: =Principal!F40 -> 6 | G3: m | I3: Densidad del agua | L3: ro | M3: =Principal!G22 -> 1000 | N3: kg/m3 | R3: Suave | S3: S1 | T3: S2 | U3: S3 | V3: =IFERROR(LOOKUP(M8,S3:U3,S6:U6),LOOKUP(M8,S5:U5,S8:U8)) -> 0.8926998775 | X3: =O12 -> 0 | Y3: =M5 -> 0.7415327354 | Z3: =M6 -> 0.8926998775
A4: Caudal circulante por el canal | E4: Q | F4: =Principal!F41 -> 12 | G4: m3/s | I4: Gravedad de la tierra | L4: g | M4: =Principal!G23 -> 9.81 | N4: m/s | R4: Crítica | S4: F1 | T4: F2 | U4: F3 | V4: =IFERROR(LOOKUP(M8,S3:U3,S7:U7),LOOKUP(M8,S5:U5,S9:U9)) -> -1 | X4: =O52 -> -582.25735 | Y4: =M5 -> 0.7415327354 | Z4: =M6 -> 0.8926998775
A5: Número de Manning | E5: n | F5: =Principal!F42 -> 0.011 | I5: Calado crítico | L5: yc | M5: =(($F$4/$F$3)^2/$M$4)^(1/3) -> 0.7415327354 | N5: m | R5: Fuerte | S5: F1 | T5: F2 | U5: F3
A6: Pendiente geométrica canal | E6: I0 | F6: =Principal!F43 -> 0.001 | G6: - | I6: Calado uniforme | L6: yu | M6: =miyuniforme(F4,F3,F5,F6) -> 0.8926998775 | N6: m | R6: Suave | S6: =M6 -> 0.8926998775 | T6: =M6 -> 0.8926998775 | U6: =M5 -> 0.7415327354
A7: Calado Y al comienzo de la curva | E7: yini | F7: =Principal!F44 -> 0.7415327354 | G7: m | I7: Pendiente | L7: Pend | M7: =IF(M6>M5, R3, IF(M6=M5, R4, R5)) -> Suave | N7: - | R7: signo | S7: 1 | T7: -1 | U7: -1
A8: Calado Y al final de la curva | E8: yfin | F8: =Principal!F45 -> 0.8926998775 | G8: m | I8: Tipo de curva de remanso | L8: Curva | M8: =IF(M7=R3,IF(F7>M6,S3,IF(F7<M5,U3,T3)),IF(M7=R5,IF(F7>M5,S5,IF(F7<M6,U5,T5)),"No hay")) -> S2 | N8: - | R8: Fuerte | S8: =M5 -> 0.7415327354 | T8: =M6 -> 0.8926998775 | U8: =M6 -> 0.8926998775
A9: Coordenada x para inicio de la curva | E9: xini | F9: 0 | G9: m | I9: Incremento del intervalo en Y | L9: Incy | M9: =(F8-F7)/40 -> 0.003779178552 | N9: m | R9: signo | S9: 1 | T9: 1 | U9: -1
A10: Calado | B10: Perímetro mojado | C10: Superficie mojada | D10: Radio hidráulico | E10: velocidad | F10: Energía específica | G10: Pendiente de pérdidas | H10: Incremento energía específica | I10: Pendiente de pérdidas media | J10: Incremento en x | K10: X acumulada | L10: Número de Froude al cuadrado | M10: Calado conjugado | N10: Impulsión | O10: x para dibujo
A11: y | B11: p | C11: S | D11: Rh | E11: v | F11: H | G11: I | H11: DH | I11: Im | J11: Dx | K11: x | L11: F2 | M11: Yc | N11: N | O11: Xdib
A12: =F7 -> 0.7415327354 | B12: =$F$3+2*A12 -> 7.483065471 | C12: =$F$3*A12 -> 4.449196412 | D12: =C12/B12 -> 0.5945686871 | E12: =$F$4/C12 -> 2.697116263 | F12: =A12+E12^2/2/$M$4 -> 1.112299103 | G12: =$F$5^2*E12^2/D12^(4/3) -> 0.001760551206 | H12: H1-H2 | I12: (I1+I2)/2 | J12: (H1-H2)/(Im-I0) | L12: =E12^2/$M$4/A12 -> 1 | M12: =A12/2*(SQRT(1+8*L12)-1) -> 0.7415327354 | N12: =$M$3*$F$4*E12+$F$3*$M$3*$M$4*A12^2/2 -> 48548.09273 | O12: =$F$9+K12 -> 0
A13: =A12+$M$9 -> 0.745311914 | B13: 7.490623828 | C13: 4.471871484 | D13: =C13/B13 -> 0.5969958693 | E13: 2.683440265 | F13: =A13+E13^2/2/$M$4 -> 1.112327799 | G13: =$F$5^2*E13^2/D13^(4/3) -> 0.00173330158 | H13: =F12-F13 -> -2.869547065e-05 | I13: =(G12+G13)/2 -> 0.001746926393 | J13: =IFERROR(H13/(I13-$F$6),0) -> -0.03841807027 | K13: =J13+K12 -> -0.03841807027 | L13: 0.9848652027 | M13: 0.7377663537 | N13: 48549.34944 | O13: =$F$9+K13 -> -0.03841807027
A14: 0.7490910925 | B14: 7.498182185 | C14: 4.494546555 | D14: =C14/B14 -> 0.5994181582 | E14: 2.669902259 | F14: 1.112413115 | G14: =$F$5^2*E14^2/D14^(4/3) -> 0.001706617662 | H14: =F13-F14 -> -8.531593376e-05 | I14: =(G13+G14)/2 -> 0.001719959621 | J14: =IFERROR(H14/(I14-$F$6),0) -> -0.1185009982 | K14: =J14+K13 -> -0.1569190684 | L14: 0.9700342872 | M14: 0.7340253932 | N14: 48553.1027 | O14: =$F$9+K14 -> -0.1569190684
A15: 0.7528702711 | B15: 7.505740542 | C15: 4.517221626 | D15: 0.6018355685 | E15: 2.656500166 | F15: 1.112553917 | G15: =$F$5^2*E15^2/D15^(4/3) -> 0.001680484833 | H15: -0.0001408023854 | I15: =(G14+G15)/2 -> 0.001693551248 | J15: -0.2030165556 | K15: =J15+K14 -> -0.3599356241 | L15: 0.9554996648 | M15: 0.7303095988 | N15: 48559.32756 | O15: -0.3599356241
A16: 0.7566494496 | B16: 7.513298899 | C16: 4.539896698 | D16: 0.6042481151 | E16: 2.64323195 | F16: 1.1127491 | G16: 0.00165488892 | H16: -0.0001951830745 | I16: 0.001667686876 | J16: -0.2923272592 | K16: -0.6522628832 | L16: 0.9412539731 | M16: 0.7266187196 | N16: 48567.9996 | O16: -0.6522628832
A17: 0.7604286282 | B17: 7.520857256 | C17: 4.562571769 | D17: 0.6066558124 | E17: 2.630095614 | F17: 1.112997585 | G17: 0.001629816188 | H17: -0.0002484854097 | I17: 0.001642352554 | J17: -0.3868364936 | K17: -1.039099377 | L17: 0.9272900682 | M17: 0.7229525085 | N17: 48579.09486 | O17: -1.039099377
A18: 0.7642078067 | B18: 7.528415613 | C18: 4.58524684 | D18: 0.6090586753 | E18: 2.617089203 | F18: 1.113298321 | G18: 0.001605253321 | H18: -0.0003007359884 | I18: 0.001617534755 | J18: -0.4869944339 | K18: -1.526093811 | L18: 0.9136010169 | M18: 0.719310723 | N18: 48592.58986 | O18: -1.526093811
A19: 0.7679869853 | B19: 7.535973971 | C19: 4.607921912 | D19: 0.6114567181 | E19: 2.604210798 | F19: 1.113650282 | G19: 0.001581187405 | H19: -0.0003519606246 | I19: 0.001593220363 | J19: -0.5933050286 | K19: -2.119398839 | L19: 0.9001800899 | M19: 0.7156931241 | N19: 48608.46158 | O19: -2.119398839
A20: 0.7717661638 | B20: 7.543532328 | C20: 4.630596983 | D20: 0.6138499554 | E20: 2.591458519 | F20: 1.114052466 | G20: =$F$5^2*E20^2/D20^(4/3) -> 0.001557605918 | H20: =F19-F20 -> -0.0004021843759 | I20: =(G19+G20)/2 -> 0.001569396662 | J20: -0.7063342708 | K20: -2.82573311 | L20: 0.8870207547 | M20: 0.7120994769 | N20: 48626.68746 | O20: -2.82573311
A21: 0.7755453424 | B21: 7.551090685 | C21: 4.653272054 | D21: 0.6162384017 | E21: 2.578830522 | F21: 1.114503898 | G21: 0.001534496713 | H21: -0.0004514315688 | I21: 0.001546051316 | J21: -0.8267200463 | K21: -3.652453156 | L21: 0.8741166687 | M21: 0.7085295502 | N21: 48647.24538 | O21: -3.652453156
A22: 0.7793245209 | B22: 7.558649042 | C22: 4.675947126 | D22: 0.6186220712 | E22: 2.566324998 | F22: 1.115003624 | G22: 0.001511848006 | H22: -0.0004997258241 | I22: 0.00152317236 | J22: -0.9551839176 | K22: -4.607637074 | L22: 0.8614616731 | M22: 0.7049831165 | N22: 48670.11363 | O22: -4.607637074
A23: 0.7831036995 | B23: 7.566207399 | C23: 4.698622197 | D23: 0.6210009783 | E23: 2.553940176 | F23: 1.115550714 | G23: 0.001489648366 | H23: -0.0005470900798 | I23: 0.001500748186 | J23: -1.092545305 | K23: -5.700182379 | L23: 0.8490497864 | M23: 0.7014599518 | N23: 48695.27093 | O23: -5.700182379
A24: 0.786882878 | B24: 7.573765756 | C24: 4.721297268 | D24: 0.6233751373 | E24: 2.541674315 | F24: =A24+E24^2/2/$M$4 -> 1.11614426 | G24: 0.001467886698 | H24: -0.000593546615 | I24: 0.001478767532 | J24: -1.239738653 | K24: -6.939921032 | L24: 0.8368751986 | M24: =A24/2*(SQRT(1+8*L24)-1) -> 0.6979598359 | N24: 48722.69643 | O24: -6.939921032
A25: 0.7906620566 | B25: 7.581324113 | C25: 4.74397234 | D25: 0.6257445624 | E25: 2.52952571 | F25: =A25+E25^2/2/$M$4 -> 1.116783378 | G25: 0.001446552234 | H25: -0.0006391170711 | I25: 0.001457219466 | J25: -1.397834342 | K25: -8.337755374 | L25: 0.8249322659 | M25: 0.6944825517 | N25: 48752.36965 | O25: -8.337755374
A26: 0.7944412351 | B26: 7.58888247 | C26: 4.766647411 | D26: 0.6281092677 | E26: 2.517492687 | F26: 1.1174672 | G26: 0.001425634524 | H26: -0.0006838224733 | I26: 0.001436093379 | J26: -1.568064333 | K26: -9.905819707 | L26: 0.8132155044 | M26: 0.6910278858 | N26: 48784.27051 | O26: -9.905819707
A27: 0.7982204137 | B27: 7.596440827 | C27: 4.789322482 | D27: 0.6304692673 | E27: 2.505573606 | F27: 1.118194883 | G27: 0.001405123421 | H27: -0.0007276832511 | I27: 0.001415378972 | J27: -1.751853849 | K27: -11.65767356 | L27: 0.8017195854 | M27: 0.6875956278 | N27: 48818.37931 | O27: -11.65767356
A28: 0.8019995922 | B28: 7.603999184 | C28: 4.811997553 | D28: 0.6328245752 | E28: 2.493766854 | F28: 1.118965603 | G28: 0.001385009073 | H28: -0.0007707192577 | I28: 0.001395066247 | J28: -1.950860809 | K28: -13.60853437 | L28: 0.7904393303 | M28: 0.6841855708 | N28: 48854.67672 | O28: -13.60853437
A29: 0.8057787708 | B29: 7.611557542 | C29: 4.834672625 | D29: 0.6351752054 | E29: 2.482070852 | F29: 1.119778552 | G29: 0.001365281914 | H29: -0.0008129497888 | I29: 0.001375145493 | J29: -2.167025337 | K29: -15.7755597 | L29: 0.7793697052 | M29: 0.6807975107 | N29: 48893.14377 | O29: -15.7755597
A30: 0.8095579494 | B30: 7.619115899 | C30: 4.857347696 | D30: 0.6375211718 | E30: 2.470484048 | F30: 1.120632946 | G30: 0.001345932651 | H30: -0.0008543936011 | I30: 0.001355607282 | J30: -2.402632464 | K30: -18.17819217 | L30: 0.7685058168 | M30: 0.6774312469 | N30: 48933.76186 | O30: -18.17819217
A31: 0.8133371279 | B31: 7.626674256 | C31: 4.880022767 | D31: 0.6398624884 | E31: 2.459004921 | F31: 1.121528015 | G31: 0.00132695226 | H31: -0.0008950689296 | I31: 0.001336442456 | J31: -2.660392332 | K31: -20.8385845 | L31: 0.7578429076 | M31: 0.6740865814 | N31: 48976.51271 | O31: -20.8385845
A32: 0.8171163065 | B32: 7.634232613 | C32: 4.902697839 | D32: 0.6421991688 | E32: 2.447631976 | F32: 1.122463008 | G32: 0.001308331972 | H32: -0.0009349935042 | I32: 0.001317642116 | J32: -2.943543869 | K32: -23.78212837 | L32: 0.7473763514 | M32: 0.6707633195 | N32: 49021.3784 | O32: -23.78212837
A33: 0.820895485 | B33: 7.64179097 | C33: 4.92537291 | D33: 0.644531227 | E33: 2.436363747 | F33: 1.123437193 | G33: 0.001290063268 | H33: -0.0009741845664 | I33: 0.00129919762 | J33: -3.255990357 | K33: -27.03811872 | L33: 0.7371016492 | M33: 0.6674612692 | N33: 49068.34133 | O33: -27.03811872
A34: 0.8246746636 | B34: 7.649349327 | C34: 4.948047981 | D34: 0.6468586764 | E34: 2.425198795 | F34: 1.124449852 | G34: 0.001272137868 | H34: -0.001012658885 | I34: 0.001281100568 | J34: -3.602478967 | K34: -30.64059769 | L34: 0.7270144252 | M34: 0.6641802413 | N34: 49117.38423 | O34: -30.64059769
A35: 0.8284538421 | B35: 7.656907684 | C35: 4.970723053 | D35: 0.6491815309 | E35: 2.414135705 | F35: 1.125500285 | G35: 0.001254547727 | H35: -0.00105043277 | I35: 0.001263342798 | J35: -3.988841842 | K35: -34.62943953 | L35: 0.7171104227 | M35: 0.6609200495 | N35: 49168.49012 | O35: -34.62943953
A36: 0.8322330207 | B36: 7.664466041 | C36: 4.993398124 | D36: 0.651499804 | E36: 2.40317309 | F36: 1.126587807 | G36: 0.001237285022 | H36: -0.001087522089 | I36: 0.001245916374 | J36: -4.422324829 | K36: -39.05176436 | L36: 0.7073855007 | M36: 0.65768051 | N36: 49221.64238 | O36: -39.05176436
A37: 0.8360121992 | B37: 7.672024398 | C37: 5.016073195 | D37: 0.6538135093 | E37: 2.392309588 | F37: 1.127711749 | G37: 0.001220342151 | H37: -0.001123942279 | I37: 0.001228813587 | J37: -4.912043447 | K37: -43.96380781 | L37: 0.6978356297 | M37: 0.6544614419 | N37: 49276.82463 | O37: -43.96380781
A38: 0.8397913778 | B38: 7.679582756 | C38: 5.038748267 | D38: 0.6561226602 | E38: 2.381543861 | F38: 1.128871457 | G38: 0.001203711721 | H38: -0.001159708363 | I38: 0.001212026936 | J38: -5.46962751 | K38: -49.43343532 | L38: 0.6884568887 | M38: 0.6512626667 | N38: 49334.02083 | O38: -49.43343532
A39: 0.8435705563 | B39: 7.687141113 | C39: 5.061423338 | D39: 0.6584272701 | E39: 2.370874594 | F39: 1.130066292 | G39: 0.001187386544 | H39: -0.00119483496 | I39: 0.001195549132 | J39: -6.110152191 | K39: -55.54358751 | L39: 0.6792454616 | M39: 0.6480840084 | N39: 49393.2152 | O39: -55.54358751
A40: 0.8473497349 | B40: 7.69469947 | C40: 5.084098409 | D40: 0.6607273525 | E40: 2.360300497 | F40: 1.131295629 | G40: 0.001171359627 | H40: -0.001229336298 | I40: 0.001179373085 | J40: -6.85351593 | K40: -62.39710344 | L40: 0.6701976339 | M40: 0.6449252936 | N40: 49454.39226 | O40: -62.39710344
A41: 0.8511289134 | B41: 7.702257827 | C41: 5.106773481 | D41: 0.6630229207 | E41: 2.349820302 | F41: 1.132558855 | G41: 0.001155624172 | H41: -0.001263226228 | I41: 0.001163491899 | J41: -7.726537107 | K41: -70.12364055 | L41: 0.6613097897 | M41: 0.6417863514 | N41: 49517.53679 | O41: -70.12364055
A42: 0.854908092 | B42: 7.709816184 | C42: 5.129448552 | D42: 0.665313988 | E42: 2.339432763 | F42: 1.133855373 | G42: 0.001140173563 | H42: -0.001296518233 | I42: 0.001147898867 | J42: -8.766248567 | K42: -78.88988911 | L42: 0.6525784085 | M42: 0.6386670131 | N42: 49582.63386 | O42: -78.88988911
A43: 0.8586872705 | B43: 7.717374541 | C43: 5.152123623 | D43: 0.6676005675 | E43: 2.329136659 | F43: 1.135184598 | G43: 0.001125001364 | H43: -0.001329225443 | I43: 0.001132587463 | J43: -10.02527243 | K43: -88.91516155 | L43: 0.6440000625 | M43: 0.6355671124 | N43: 49649.66878 | O43: -88.91516155
A44: 0.8624664491 | B44: 7.724932898 | C44: 5.174798694 | D44: 0.6698826725 | E44: 2.318930785 | F44: 1.136545959 | G44: 0.001110101315 | H44: -0.001361360641 | I44: 0.001117551339 | J44: -11.58098791 | K44: -100.4961495 | L44: 0.6355714134 | M44: 0.6324864853 | N44: 49718.62712 | O44: -100.4961495
A45: 0.8662456276 | B45: 7.732491255 | C45: 5.197473766 | D45: 0.672160316 | E45: 2.308813962 | F45: 1.137938895 | G45: 0.00109546732 | H45: -0.001392936278 | I45: 0.001102784317 | J45: -13.55203125 | K45: -114.0481807 | L45: 0.6272892101 | M45: 0.62942497 | N45: 49789.49472 | O45: -114.0481807
A46: 0.8700248062 | B46: 7.740049612 | C46: 5.220148837 | D46: 0.6744335112 | E46: 2.29878503 | F46: 1.13936286 | G46: 0.001081093449 | H46: -0.00142396448 | I46: 0.001088280384 | J46: -16.13002131 | K46: -130.178202 | L46: 0.6191502858 | M46: 0.6263824069 | N46: 49862.25766 | O46: -130.178202
A47: 0.8738039847 | B47: 7.747607969 | C47: 5.242823908 | D47: 0.6767022711 | E47: 2.288842847 | F47: 1.140817317 | G47: 0.001066973929 | H47: -0.00145445706 | I47: 0.001074033689 | J47: -19.64588119 | K47: -149.8240832 | L47: 0.6111515554 | M47: 0.6233586386 | N47: 49936.90223 | O47: -149.8240832
A48: 0.8775831633 | B48: 7.755166327 | C48: 5.26549898 | D48: 0.6789666086 | E48: 2.278986293 | F48: 1.142301742 | G48: 0.001053103141 | H48: -0.001484425527 | I48: 0.001060038535 | J48: -24.72454604 | K48: -174.5486293 | L48: 0.6032900134 | M48: 0.6203535097 | N48: 50013.41501 | O48: -174.5486293
A49: 0.8813623418 | B49: 7.762724684 | C49: 5.288174051 | D49: 0.6812265366 | E49: 2.269214266 | F49: 1.143815624 | G49: 0.001039475612 | H49: -0.001513881091 | I49: 0.001046289377 | J49: -32.70471972 | K49: -207.253349 | L49: 0.5955627311 | M49: 0.6173668669 | N49: 50091.78277 | O49: -207.253349
A50: 0.8851415204 | B50: 7.770283041 | C50: 5.310849122 | D50: 0.6834820681 | E50: 2.259525685 | F50: 1.145358458 | G50: 0.001026086016 | H50: -0.001542834681 | I50: 0.001032780814 | J50: -47.06517281 | K50: -254.3185218 | L50: 0.5879668546 | M50: 0.614398559 | N50: 50171.99251 | O50: -254.3185218
A51: 0.8889206989 | B51: 7.777841398 | C51: 5.333524194 | D51: 0.6857332158 | E51: 2.249919484 | F51: 1.146929755 | G51: 0.001012929163 | H51: -0.001571296942 | I51: 0.001019507589 | J51: -80.54798172 | K51: -334.8665035 | L51: 0.5804996026 | M51: 0.6114484367 | N51: 50254.03147 | O51: -334.8665035
A52: 0.8926998775 | B52: 7.785399755 | C52: 5.356199265 | D52: 0.6879799925 | E52: 2.240394617 | F52: 1.148529033 | G52: 0.001 | H52: -0.001599278254 | I52: 0.001006464581 | J52: -247.3908465 | K52: -582.25735 | L52: 0.5731582638 | M52: 0.6085163525 | N52: 50337.88709 | O52: -582.25735

Sheet CurvaRemansoDer
A1: ="Curva " & M8 -> Curva F2
R2: Pendienes | S2: Curvas | V2: Limites | X2: x | Y2: yc | Z2: yu
A3: Ancho del canal rectángular | E3: b | F3: =Principal!G40 -> 6 | G3: m | I3: Densidad del agua | L3: ro | M3: =Principal!G22 -> 1000 | N3: kg/m3 | R3: Suave | S3: S1 | T3: S2 | U3: S3 | V3: =IFERROR(LOOKUP(M8,S3:U3,S6:U6),LOOKUP(M8,S5:U5,S8:U8)) -> 0.711395303 | X3: =O12 -> 0 | Y3: =M5 -> 0.7415327354 | Z3: =M6 -> 0.711395303
A4: Caudal circulante por el canal | E4: Q | F4: =Principal!G41 -> 12 | G4: m3/s | I4: Gravedad de la tierra | L4: g | M4: =Principal!G23 -> 9.81 | N4: m/s | R4: Crítica | S4: F1 | T4: F2 | U4: F3 | V4: =IFERROR(LOOKUP(M8,S3:U3,S7:U7),LOOKUP(M8,S5:U5,S9:U9)) -> 1 | X4: =O52 -> 71.32500513 | Y4: =M5 -> 0.7415327354 | Z4: =M6 -> 0.711395303
A5: Número de Manning | E5: n | F5: =Principal!G42 -> 0.011 | I5: Calado crítico | L5: yc | M5: =(($F$4/$F$3)^2/$M$4)^(1/3) -> 0.7415327354 | N5: m | R5: Fuerte | S5: F1 | T5: F2 | U5: F3
A6: Pendiente geométrica canal | E6: I0 | F6: =Principal!G43 -> 0.002 | G6: - | I6: Calado uniforme | L6: yu | M6: =miyuniforme(F4,F3,F5,F6) -> 0.711395303 | N6: m | R6: Suave | S6: =M6 -> 0.711395303 | T6: =M6 -> 0.711395303 | U6: =M5 -> 0.7415327354
A7: Calado Y al comienzo de la curva | E7: yini | F7: =Principal!G44 -> 0.7415327354 | G7: m | I7: Pendiente | L7: Pend | M7: =IF(M6>M5, R3, IF(M6=M5, R4, R5)) -> Fuerte | N7: - | R7: signo | S7: 1 | T7: -1 | U7: -1
A8: Calado Y al final de la curva | E8: yfin | F8: =Principal!G45 -> 0.711395303 | G8: m | I8: Tipo de curva de remanso | L8: Curva | M8: =IF(M7=R3,IF(F7>M6,S3,IF(F7<M5,U3,T3)),IF(M7=R5,IF(F7>M5,S5,IF(F7<M6,U5,T5)),"No hay")) -> F2 | N8: - | R8: Fuerte | S8: =M5 -> 0.7415327354 | T8: =M6 -> 0.711395303 | U8: =M6 -> 0.711395303
A9: Coordenada x para inicio de la curva | E9: xini | F9: 0 | G9: m | I9: Incremento del intervalo en Y | L9: Incy | M9: =(F8-F7)/40 -> -0.0007534358105 | N9: m | R9: signo | S9: 1 | T9: 1 | U9: -1
A10: Calado | B10: Perímetro mojado | C10: Superficie mojada | D10: Radio hidráulico | E10: velocidad | F10: Energía específica | G10: Pendiente de pérdidas | H10: Incremento energía específica | I10: Pendiente de pérdidas media | J10: Incremento en x | K10: X acumulada | L10: Número de Froude al cuadrado | M10: Calado conjugado | N10: Impulsión | O10: x para dibujo
A11: y | B11: p | C11: S | D11: Rh | E11: v | F11: H0 | G11: I | H11: DH0 | I11: Im | J11: Dx | K11: x | L11: F2 | M11: Yc | N11: N | O11: Xdib
A12: =F7 -> 0.7415327354 | B12: =$F$3+2*A12 -> 7.483065471 | C12: =$F$3*A12 -> 4.449196412 | D12: =C12/B12 -> 0.5945686871 | E12: =$F$4/C12 -> 2.697116263 | F12: =A12+E12^2/2/$M$4 -> 1.112299103 | G12: =$F$5^2*E12^2/D12^(4/3) -> 0.001760551206 | H12: H1-H2 | I12: (I1+I2)/2 | J12: (H1-H2)/(Im-I0) | L12: =E12^2/$M$4/A12 -> 1 | M12: =A12/2*(SQRT(1+8*L12)-1) -> 0.7415327354 | N12: =$M$3*$F$4*E12+$F$3*$M$3*$M$4*A12^2/2 -> 48548.09273 | O12: =$F$9+K12 -> 0
A13: =A12+$M$9 -> 0.7407792996 | B13: 7.481558599 | C13: 4.444675798 | D13: =C13/B13 -> 0.5940842057 | E13: 2.69985946 | F13: =A13+E13^2/2/$M$4 -> 1.112300253 | G13: =$F$5^2*E13^2/D13^(4/3) -> 0.001766052775 | H13: =F12-F13 -> -1.149852545e-06 | I13: =(G12+G13)/2 -> 0.00176330199 | J13: =IFERROR(H13/(I13-$F$6),0) -> 0.004857888525 | K13: =J13+K12 -> 0.004857888525 | L13: 1.003054361 | M13: 0.7422866819 | N13: 48548.14288 | O13: =$F$9+K13 -> 0.004857888525
A14: 0.7400258638 | B14: 7.480051728 | C14: 4.440155183 | D14: =C14/B14 -> 0.5935995291 | E14: 2.702608244 | F14: 1.112303709 | G14: =$F$5^2*E14^2/D14^(4/3) -> 0.001771577548 | H14: =F13-F14 -> -3.455803957e-06 | I14: =(G13+G14)/2 -> 0.001768815161 | J14: =IFERROR(H14/(I14-$F$6),0) -> 0.01494822921 | K14: =J14+K13 -> 0.01980611773 | L14: 1.006121173 | M14: 0.7430416512 | N14: 48548.29348 | O14: =$F$9+K14 -> 0.01980611773
A15: 0.739272428 | B15: 7.478544856 | C15: 4.435634568 | D15: 0.5931146571 | E15: 2.70536263 | F15: 1.11230948 | G15: =$F$5^2*E15^2/D15^(4/3) -> 0.001777125649 | H15: -5.771160679e-06 | I15: =(G14+G15)/2 -> 0.001774351598 | J15: 0.02557589879 | K15: =J15+K14 -> 0.04538201652 | L15: 1.0092005 | M15: 0.7437976454 | N15: 48548.54472 | O15: 0.04538201652
A16: 0.7385189922 | B16: 7.477037984 | C16: 4.431113953 | D16: 0.5926295897 | E16: 2.708122636 | F16: 1.112317576 | G16: 0.001782697201 | H16: -8.09597071e-06 | I16: 0.001779911425 | J16: 0.03678505667 | K16: 0.08216707319 | L16: 1.012292406 | M16: 0.7445546665 | N16: 48548.89682 | O16: 0.08216707319
A17: 0.7377655564 | B17: 7.475531113 | C17: 4.426593338 | D17: 0.5921443268 | E17: 2.71088828 | F17: 1.112328006 | G17: 0.001788292327 | H17: -1.043028235e-05 | I17: 0.001785494764 | J17: 0.04862483799 | K17: 0.1307919112 | L17: 1.015396955 | M17: 0.7453127167 | N17: 48549.34997 | O17: 0.1307919112
A18: 0.7370121206 | B18: 7.474024241 | C18: 4.422072723 | D18: 0.5916588682 | E18: 2.713659578 | F18: 1.11234078 | G18: 0.001793911154 | H18: -1.277414418e-05 | I18: 0.001791101741 | J18: 0.06115007479 | K18: 0.191941986 | L18: 1.018514213 | M18: 0.746071798 | N18: 48549.9044 | O18: 0.191941986
A19: 0.7362586847 | B19: 7.472517369 | C19: 4.417552108 | D19: 0.5911732138 | E19: 2.716436548 | F19: 1.112355908 | G19: 0.001799553806 | H19: -1.51276051e-05 | I19: 0.00179673248 | J19: 0.07442214632 | K19: 0.2663641323 | L19: 1.021644243 | M19: 0.7468319127 | N19: 48550.5603 | O19: 0.2663641323
A20: 0.7355052489 | B20: 7.471010498 | C20: 4.413031494 | D20: 0.5906873635 | E20: 2.719219207 | F20: 1.112373399 | G20: =$F$5^2*E20^2/D20^(4/3) -> 0.001805220411 | H20: =F19-F20 -> -1.74907143e-05 | I20: =(G19+G20)/2 -> 0.001802387109 | J20: 0.08850998627 | K20: 0.3548741185 | L20: 1.024787111 | M20: 0.7475930627 | N20: 48551.31788 | O20: 0.3548741185
A21: 0.7347518131 | B21: 7.469503626 | C21: 4.408510879 | D21: 0.5902013172 | E21: 2.722007574 | F21: 1.112393262 | G21: 0.001810911095 | H21: -1.986352126e-05 | I21: 0.001808065753 | J21: 0.1034912819 | K21: 0.4583654005 | L21: 1.027942884 | M21: 0.7483552503 | N21: 48552.17736 | O21: 0.4583654005
A22: 0.7339983773 | B22: 7.467996755 | C22: 4.403990264 | D22: 0.5897150747 | E22: 2.724801664 | F22: 1.112415508 | G22: 0.001816625987 | H22: -2.22460758e-05 | I22: 0.001813768541 | J22: 0.1194539093 | K22: 0.5778193098 | L22: 1.031111628 | M22: 0.7491184775 | N22: 48553.13894 | O22: 0.5778193098
A23: 0.7332449415 | B23: 7.466489883 | C23: 4.399469649 | D23: 0.5892286359 | E23: 2.727601497 | F23: 1.112440147 | G23: 0.001822365216 | H23: -2.463842801e-05 | I23: 0.001819495601 | J23: 0.1364976599 | K23: 0.7143169696 | L23: 1.034293409 | M23: 0.7498827465 | N23: 48554.20285 | O23: 0.7143169696
A24: 0.7324915057 | B24: 7.464983011 | C24: 4.394949034 | D24: 0.5887420008 | E24: 2.730407089 | F24: =A24+E24^2/2/$M$4 -> 1.112467187 | G24: 0.001828128911 | H24: -2.704062831e-05 | I24: 0.001825247063 | J24: 0.1547363313 | K24: 0.8690533009 | L24: 1.037488295 | M24: =A24/2*(SQRT(1+8*L24)-1) -> 0.7506480595 | N24: 48555.36928 | O24: 0.8690533009
A25: 0.7317380699 | B25: 7.46347614 | C25: 4.390428419 | D25: 0.5882551692 | E25: 2.733218459 | F25: =A25+E25^2/2/$M$4 -> 1.11249664 | G25: 0.001833917203 | H25: -2.945272743e-05 | I25: 0.001831023057 | J25: 0.1743002737 | K25: 1.043353575 | L25: 1.040696353 | M25: 0.7514144186 | N25: 48556.63846 | O25: 1.043353575
A26: 0.7309846341 | B26: 7.461969268 | C26: 4.385907804 | D26: 0.5877681409 | E26: 2.736035625 | F26: 1.112528515 | G26: 0.001839730224 | H26: -3.18747764e-05 | I26: 0.001836823714 | J26: 0.1953395135 | K26: 1.238693088 | L26: 1.04391765 | M26: 0.752181826 | N26: 48558.01059 | O26: 1.238693088
A27: 0.7302311983 | B27: 7.460462397 | C27: 4.38138719 | D27: 0.5872809159 | E27: 2.738858604 | F27: 1.112562822 | G27: 0.001845568106 | H27: -3.430682659e-05 | I27: 0.001842649165 | J27: 0.2180276106 | K27: 1.456720699 | L27: 1.047152256 | M27: 0.7529502838 | N27: 48559.4859 | O27: 1.456720699
A28: 0.7294777624 | B28: 7.458955525 | C28: 4.376866575 | D28: 0.5867934941 | E28: 2.741687414 | F28: 1.112599571 | G28: 0.001851430982 | H28: -3.674892967e-05 | I28: 0.001848499544 | J28: 0.2425664621 | K28: 1.699287161 | L28: 1.050400239 | M28: 0.7537197943 | N28: 48561.06459 | O28: 1.699287161
A29: 0.7287243266 | B29: 7.457448653 | C29: 4.37234596 | D29: 0.5863058753 | E29: 2.744522074 | F29: 1.112638772 | G29: 0.001857318986 | H29: -3.920113763e-05 | I29: 0.001854374984 | J29: 0.2691923315 | K29: 1.968479492 | L29: 1.053661669 | M29: 0.7544903596 | N29: 48562.7469 | O29: 1.968479492
A30: 0.7279708908 | B30: 7.455941782 | C30: 4.367825345 | D30: 0.5858180593 | E30: 2.747362601 | F30: 1.112680435 | G30: 0.001863232253 | H30: -4.166350279e-05 | I30: 0.001860275619 | J30: 0.2981834853 | K30: 2.266662978 | L30: 1.056936614 | M30: 0.7552619818 | N30: 48564.53303 | O30: 2.266662978
A31: 0.727217455 | B31: 7.45443491 | C31: 4.36330473 | D31: 0.5853300462 | E31: 2.750209014 | F31: 1.112724571 | G31: 0.001869170919 | H31: -4.41360778e-05 | I31: 0.001866201586 | J31: 0.329869962 | K31: 2.59653294 | L31: 1.060225146 | M31: 0.7560346633 | N31: 48566.4232 | O31: 2.59653294
A32: 0.7264640192 | B32: 7.452928038 | C32: 4.358784115 | D32: 0.5848418357 | E32: 2.753061331 | F32: 1.11277119 | G32: 0.00187513512 | H32: -4.661891563e-05 | I32: 0.001872153019 | J32: 0.3646461995 | K32: 2.961179139 | L32: 1.063527335 | M32: 0.7568084063 | N32: 48568.41763 | O32: 2.961179139
A33: 0.7257105834 | B33: 7.451421167 | C33: 4.3542635 | D33: 0.5843534277 | E33: 2.755919571 | F33: 1.112820302 | G33: 0.001881124994 | H33: -4.911206959e-05 | I33: 0.001878130057 | J33: 0.4029875483 | K33: 3.364166687 | L33: 1.066843251 | M33: 0.7575832128 | N33: 48570.51655 | O33: 3.364166687
A34: 0.7249571476 | B34: 7.449914295 | C34: 4.349742886 | D34: 0.5838648222 | E34: 2.758783752 | F34: 1.112871918 | G34: 0.001887140679 | H34: -5.161559329e-05 | I34: 0.001884132837 | J34: 0.4454721403 | K34: 3.809638828 | L34: 1.070172966 | M34: 0.7583590853 | N34: 48572.72017 | O34: 3.809638828
A35: 0.7242037118 | B35: 7.448407424 | C35: 4.345222271 | D35: 0.583376019 | E35: 2.761653893 | F35: 1.112926047 | G35: 0.001893182315 | H35: -5.412954073e-05 | I35: 0.001890161497 | J35: 0.4928102559 | K35: 4.302449084 | L35: 1.073516552 | M35: 0.7591360258 | N35: 48575.02872 | O35: 4.302449084
A36: 0.723450276 | B36: 7.446900552 | C36: 4.340701656 | D36: 0.582887018 | E36: 2.764530012 | F36: 1.112982701 | G36: 0.001899250042 | H36: -5.66539662e-05 | I36: 0.001896216178 | J36: 0.5458843706 | K36: 4.848333454 | L36: 1.076874081 | M36: 0.7599140367 | N36: 48577.44242 | O36: 4.848333454
A37: 0.7226968402 | B37: 7.44539368 | C37: 4.336181041 | D37: 0.582397819 | E37: 2.767412128 | F37: 1.11304189 | G37: 0.001905344 | H37: -5.918892435e-05 | I37: 0.001902297021 | J37: 0.6058047031 | K37: 5.454138157 | L37: 1.080245626 | M37: 0.7606931201 | N37: 48579.9615 | O37: 5.454138157
A38: 0.7219434043 | B38: 7.443886809 | C38: 4.331660426 | D38: 0.581908422 | E38: 2.770300259 | F38: 1.113103625 | G38: 0.001911464332 | H38: -6.173447016e-05 | I38: 0.001908404166 | J38: 0.6739877513 | K38: 6.128125909 | L38: 1.08363126 | M38: 0.7614732784 | N38: 48582.58618 | O38: 6.128125909
A39: 0.7211899685 | B39: 7.442379937 | C39: 4.327139811 | D39: 0.5814188267 | E39: 2.773194425 | F39: 1.113167915 | G39: 0.001917611181 | H39: -6.429065898e-05 | I39: 0.001914537757 | J39: 0.7522697328 | K39: 6.880395641 | L39: 1.087031057 | M39: 0.7622545139 | N39: 48585.31669 | O39: 6.880395641
A40: 0.7204365327 | B40: 7.440873065 | C40: 4.322619196 | D40: 0.5809290332 | E40: 2.776094644 | F40: 1.113234773 | G40: 0.001923784691 | H40: -6.685754649e-05 | I40: 0.001920697936 | J40: 0.8430744807 | K40: 7.723470122 | L40: 1.090445091 | M40: 0.7630368287 | N40: 48588.15325 | O40: 7.723470122
A41: 0.7196830969 | B41: 7.439366194 | C41: 4.318098581 | D41: 0.5804390413 | E41: 2.779000936 | F41: 1.113304208 | G41: 0.001929985006 | H41: -6.943518871e-05 | I41: 0.001926884848 | J41: 0.9496689407 | K41: 8.673139063 | L41: 1.093873437 | M41: 0.7638202251 | N41: 48591.09609 | O41: 8.673139063
A42: 0.7189296611 | B42: 7.437859322 | C42: 4.313577967 | D42: 0.5799488508 | E42: 2.781913319 | F42: 1.113376232 | G42: 0.001936212272 | H42: -7.202364204e-05 | I42: 0.001933098639 | J42: 1.076564674 | K42: 9.749703737 | L42: 1.097316169 | M42: 0.7646047056 | N42: 48594.14544 | O42: 9.749703737
A43: 0.7181762253 | B43: 7.436352451 | C43: 4.309057352 | D43: 0.5794584617 | E43: 2.784831814 | F43: 1.113450855 | G43: 0.001942466636 | H43: -7.46229632e-05 | I43: 0.001939339454 | J43: 1.230172956 | K43: 10.97987669 | L43: 1.100773363 | M43: 0.7653902722 | N43: 48597.30154 | O43: 10.97987669
A44: 0.7174227895 | B44: 7.434845579 | C44: 4.304536737 | D44: 0.5789678738 | E44: 2.787756438 | F44: 1.113528088 | G44: 0.001948748246 | H44: -7.72332093e-05 | I44: 0.001945607441 | J44: 1.419922329 | K44: 12.39979902 | L44: 1.104245096 | M44: 0.7661769275 | N44: 48600.56461 | O44: 12.39979902
A45: 0.7166693537 | B45: 7.433338707 | C45: 4.300016122 | D45: 0.578477087 | E45: 2.790687211 | F45: 1.113607942 | G45: 0.001955057249 | H45: -7.985443779e-05 | I45: 0.001951902747 | J45: 1.660270256 | K45: 14.06006928 | L45: 1.107731443 | M45: 0.7669646736 | N45: 48603.93488 | O45: 14.06006928
A46: 0.7159159179 | B46: 7.431831836 | C46: 4.295495507 | D46: 0.5779861012 | E46: 2.793624153 | F46: 1.113690429 | G46: 0.001961393797 | H46: -8.24867065e-05 | I46: 0.001958225523 | J46: 1.974571854 | K46: 16.03464113 | L46: 1.111232482 | M46: 0.7677535128 | N46: 48607.41259 | O46: 16.03464113
A47: 0.715162482 | B47: 7.430324964 | C47: 4.290974892 | D47: 0.5774949162 | E47: 2.796567284 | F47: 1.113775559 | G47: 0.001967758038 | H47: -8.513007361e-05 | I47: 0.001964575918 | J47: 2.403169473 | K47: 18.4378106 | L47: 1.11474829 | M47: 0.7685434477 | N47: 48610.99798 | O47: 18.4378106
A48: 0.7144090462 | B48: 7.428818092 | C48: 4.286454277 | D48: 0.5770035319 | E48: 2.799516622 | F48: 1.113863344 | G48: 0.001974150126 | H48: -8.778459767e-05 | I48: 0.001970954082 | J48: 3.022269704 | K48: 21.46008031 | L48: 1.118278946 | M48: 0.7693344803 | N48: 48614.69126 | O48: 21.46008031
A49: 0.7136556104 | B49: 7.427311221 | C49: 4.281933663 | D49: 0.5765119483 | E49: 2.802472188 | F49: 1.113953794 | G49: 0.001980570212 | H49: -9.045033762e-05 | I49: 0.001977360169 | J49: 3.995186038 | K49: 25.45526635 | L49: 1.121824527 | M49: 0.7701266132 | N49: 48618.4927 | O49: 25.45526635
A50: 0.7129021746 | B50: 7.425804349 | C50: 4.277413048 | D50: 0.5760201652 | E50: 2.805434001 | F50: 1.114046921 | G50: 0.001987018449 | H50: -9.312735274e-05 | I50: 0.001983794331 | J50: 5.746590921 | K50: 31.20185727 | L50: 1.125385112 | M50: 0.7709198486 | N50: 48622.40251 | O50: 31.20185727
A51: 0.7121487388 | B51: 7.424297478 | C51: 4.272892433 | D51: 0.5755281824 | E51: 2.808402081 | F51: 1.114142737 | G51: 0.001993494994 | H51: -9.581570271e-05 | I51: 0.001990256722 | J51: 9.834031079 | K51: 41.03588835 | L51: 1.128960782 | M51: 0.771714189 | N51: 48626.42094 | O51: 41.03588835
A52: 0.711395303 | B52: 7.422790606 | C52: 4.268371818 | D52: 0.5750359999 | E52: 2.811376448 | F52: 1.114241253 | G52: 0.002 | H52: -9.85154476e-05 | I52: 0.001996747497 | J52: 30.28911678 | K52: 71.32500513 | L52: 1.132551615 | M52: 0.7725096366 | N52: 48630.54822 | O52: 71.32500513

Sheet CRemRectRedIzq
A1: ="Curva " & M8 -> Curva S2
R2: Pend. | S2: Curvas | V2: Limites | X2: x | Y2: yc | Z2: yu | AA2: yucong
A3: Ancho del canal rectángular | E3: b | F3: =Principal!F40 -> 6 | G3: m | I3: Densidad del agua | L3: ro | M3: 1000 | N3: kg/m3 | R3: Suave | S3: S1 | T3: S2 | U3: S3 | V3: =IFERROR(LOOKUP(M8,S3:U3,S6:U6),LOOKUP(M8,S5:U5,S8:U8)) -> 0.8926998775 | X3: =O12 -> 0 | Y3: =M5 -> 0.7415327354 | Z3: =M6 -> 0.8926998775 | AA3: =M6/2*(SQRT(1+8*F4^2/M4/M6^3/F3^2)-1) -> 0.6085163525
A4: Caudal circulante por el canal | E4: Q | F4: =Principal!F41 -> 12 | G4: m3/s | I4: Gravedad de la tierra | L4: g | M4: 9.81 | N4: m/s | R4: Crítica | S4: F1 | T4: F2 | U4: F3 | V4: =IFERROR(LOOKUP(M8,S3:U3,S7:U7),LOOKUP(M8,S5:U5,S9:U9)) -> -1 | X4: =O17 -> -312.5873708 | Y4: =M5 -> 0.7415327354 | Z4: =M6 -> 0.8926998775 | AA4: =AA3 -> 0.6085163525
A5: Número de Manning | E5: n | F5: =Principal!F42 -> 0.011 | I5: Calado crítico | L5: yc | M5: =(($F$4/$F$3)^2/$M$4)^(1/3) -> 0.7415327354 | N5: m | R5: Fuerte | S5: F1 | T5: F2 | U5: F3
A6: Pendiente geométrica canal | E6: I0 | F6: =Principal!F43 -> 0.001 | G6: - | I6: Calado uniforme | L6: yu | M6: =miyuniforme(F4,F3,F5,F6) -> 0.8926998775 | N6: m | R6: Suave | S6: =M6 -> 0.8926998775 | T6: =M6 -> 0.8926998775 | U6: =M5 -> 0.7415327354
A7: Calado Y al comienzo de la curva | E7: yini | F7: =Principal!F44 -> 0.7415327354 | G7: m | I7: Pendiente | L7: Pend | M7: =IF(M6>M5, R3, IF(M6=M5, R4, R5)) -> Suave | N7: - | R7: signo | S7: 1 | T7: -1 | U7: -1
A8: Calado Y al final de la curva | E8: yfin | F8: =Principal!F45 -> 0.8926998775 | G8: m | I8: Tipo de curva de remanso | L8: Curva | M8: =IF(M7=R3,IF(F7>M6,S3,IF(F7<M5,U3,T3)),IF(M7=R5,IF(F7>M5,S5,IF(F7<M6,U5,T5)),"No hay")) -> S2 | N8: - | R8: Fuerte | S8: =M5 -> 0.7415327354 | T8: =M6 -> 0.8926998775 | U8: =M6 -> 0.8926998775
A9: Coordenada x para inicio de la curva | E9: xini | F9: 0 | G9: m | I9: Incremento del intervalo en Y | L9: Incy | M9: =(F8-F7)/5 -> 0.03023342842 | N9: m | R9: signo | S9: 1 | T9: 1 | U9: -1
A10: Calado | B10: Perímetro mojado | C10: Superficie mojada | D10: Radio hidráulico | E10: velocidad | F10: Energía específica | G10: Pendiente de pérdidas | H10: Incremento energía específica | I10: Pendiente de pérdidas media | J10: Incremento en x | K10: X acumulada | L10: Número de Froude al cuadrado | M10: Calado conjugado | N10: Impulsión | O10: x para dibujo
A11: y | B11: p | C11: S | D11: Rh | E11: v | F11: H | G11: I | H11: DH | I11: Im | J11: Dx | K11: x | L11: F2 | M11: ycong | N11: N | O11: Xdib
A12: =F7 -> 0.7415327354 | B12: =$F$3+2*A12 -> 7.483065471 | C12: =$F$3*A12 -> 4.449196412 | D12: =C12/B12 -> 0.5945686871 | E12: =$F$4/C12 -> 2.697116263 | F12: =A12+E12^2/2/$M$4 -> 1.112299103 | G12: =$F$5^2*E12^2/D12^(4/3) -> 0.001760551206 | H12: H1-H2 | I12: (I1+I2)/2 | J12: DH/(Im-I0) | K12: 0 | L12: =E12^2/$M$4/A12 -> 1 | M12: =A12/2*(SQRT(1+8*L12)-1) -> 0.7415327354 | N12: =$M$3*$F$4*E12+$F$3*$M$3*$M$4*A12^2/2 -> 48548.09273 | O12: =$F$9+K12 -> 0 | Q12: y | R12: =TRANSPOSE(A12:A17) -> 0.7415327354 | S12: 0.7717661638 | T12: 0.8019995922 | U12: 0.8322330207 | V12: 0.8624664491 | W12: 0.8926998775
A13: =A12+$M$9 -> 0.7717661638 | B13: =$F$3+2*A13 -> 7.543532328 | C13: =$F$3*A13 -> 4.630596983 | D13: =C13/B13 -> 0.6138499554 | E13: =$F$4/C13 -> 2.591458519 | F13: =A13+E13^2/2/$M$4 -> 1.114052466 | G13: =$F$5^2*E13^2/D13^(4/3) -> 0.001557605918 | H13: =F12-F13 -> -0.001753363263 | I13: =(G12+G13)/2 -> 0.001659078562 | J13: =H13/(I13-$F$6) -> -2.660325132 | K13: =J13 -> -2.660325132 | L13: 0.8870207547 | M13: 0.7120994769 | N13: 48626.68746 | O13: =$F$9+K13 -> -2.660325132 | Q13: x | R13: =TRANSPOSE(O12:O17) -> 0 | S13: -2.660325132 | T13: -13.08480636 | U13: -37.58191856 | V13: -94.91377875 | W13: -312.5873708
A14: 0.8019995922 | B14: 7.603999184 | C14: 4.811997553 | D14: 0.6328245752 | E14: 2.493766854 | F14: 1.118965603 | G14: 0.001385009073 | H14: =F13-F14 -> -0.004913136141 | I14: =(G13+G14)/2 -> 0.001471307495 | J14: =H14/(I14-$F$6) -> -10.42448123 | K14: =J14+K13 -> -13.08480636 | L14: 0.7904393303 | M14: 0.6841855708 | N14: 48854.67672 | O14: =$F$9+K14 -> -13.08480636
A15: 0.8322330207 | B15: 7.664466041 | C15: 4.993398124 | D15: 0.651499804 | E15: 2.40317309 | F15: 1.126587807 | G15: 0.001237285022 | H15: -0.007622204133 | I15: 0.001311147048 | J15: -24.4971122 | K15: =J15+K14 -> -37.58191856 | L15: 0.7073855007 | M15: 0.65768051 | N15: 49221.64238 | O15: -37.58191856
A16: 0.8624664491 | B16: 7.724932898 | C16: 5.174798694 | D16: 0.6698826725 | E16: 2.318930785 | F16: 1.136545959 | G16: 0.001110101315 | H16: -0.009958152444 | I16: 0.001173693168 | J16: -57.33186019 | K16: -94.91377875 | L16: 0.6355714134 | M16: 0.6324864853 | N16: 49718.62712 | O16: -94.91377875
A17: =A16+$M$9 -> 0.8926998775 | B17: 7.785399755 | C17: 5.356199265 | D17: 0.6879799925 | E17: 2.240394617 | F17: 1.148529033 | G17: 0.001 | H17: -0.01198307431 | I17: 0.001055050657 | J17: -217.6735921 | K17: -312.5873708 | L17: 0.5731582638 | M17: 0.6085163525 | N17: 50337.88709 | O17: -312.5873708

Sheet CRemRectRedDer
A1: ="Curva " & M8 -> Curva F2
R2: Pend. | S2: Curvas | V2: Limites | X2: x | Y2: yc | Z2: yu | AA2: yucong
A3: Ancho del canal rectángular | E3: b | F3: =Principal!G40 -> 6 | G3: m | I3: Densidad del agua | L3: ro | M3: 1000 | N3: kg/m3 | R3: Suave | S3: S1 | T3: S2 | U3: S3 | V3: =IFERROR(LOOKUP(M8,S3:U3,S6:U6),LOOKUP(M8,S5:U5,S8:U8)) -> 0.711395303 | X3: =O12 -> 0 | Y3: =M5 -> 0.7415327354 | Z3: =M6 -> 0.711395303 | AA3: =M6/2*(SQRT(1+8*F4^2/M4/M6^3/F3^2)-1) -> 0.7725096366
A4: Caudal circulante por el canal | E4: Q | F4: =Principal!G41 -> 12 | G4: m3/s | I4: Gravedad de la tierra | L4: g | M4: 9.81 | N4: m/s | R4: Crítica | S4: F1 | T4: F2 | U4: F3 | V4: =IFERROR(LOOKUP(M8,S3:U3,S7:U7),LOOKUP(M8,S5:U5,S9:U9)) -> 1 | X4: =O17 -> 0 | Y4: =M5 -> 0.7415327354 | Z4: =M6 -> 0.711395303 | AA4: =AA3 -> 0.7725096366
A5: Número de Manning | E5: n | F5: =Principal!G42 -> 0.011 | I5: Calado crítico | L5: yc | M5: =(($F$4/$F$3)^2/$M$4)^(1/3) -> 0.7415327354 | N5: m | R5: Fuerte | S5: F1 | T5: F2 | U5: F3
A6: Pendiente geométrica canal | E6: I0 | F6: =Principal!G43 -> 0.002 | G6: - | I6: Calado uniforme | L6: yu | M6: =miyuniforme(F4,F3,F5,F6) -> 0.711395303 | N6: m | R6: Suave | S6: =M6 -> 0.711395303 | T6: =M6 -> 0.711395303 | U6: =M5 -> 0.7415327354
A7: Calado Y al comienzo de la curva | E7: yini | F7: =Principal!G44 -> 0.7415327354 | G7: m | I7: Pendiente | L7: Pend | M7: =IF(M6>M5, R3, IF(M6=M5, R4, R5)) -> Fuerte | N7: - | R7: signo | S7: 1 | T7: -1 | U7: -1
A8: Calado Y al final de la curva | E8: yfin | F8: =Principal!G45 -> 0.711395303 | G8: m | I8: Tipo de curva de remanso | L8: Curva | M8: =IF(M7=R3,IF(F7>M6,S3,IF(F7<M5,U3,T3)),IF(M7=R5,IF(F7>M5,S5,IF(F7<M6,U5,T5)),"No hay")) -> F2 | N8: - | R8: Fuerte | S8: =M5 -> 0.7415327354 | T8: =M6 -> 0.711395303 | U8: =M6 -> 0.711395303
A9: Coordenada x para inicio de la curva | E9: xini | F9: 0 | G9: m | I9: Incremento del intervalo en Y | L9: Incy | M9: =(F8-F7)/5 -> -0.006027486484 | N9: m | R9: signo | S9: 1 | T9: 1 | U9: -1
A10: Calado | B10: Perímetro mojado | C10: Superficie mojada | D10: Radio hidráulico | E10: velocidad | F10: Energía específica | G10: Pendiente de pérdidas | H10: Incremento energía específica | I10: Pendiente de pérdidas media | J10: Incremento en x | K10: X acumulada | L10: Número de Froude al cuadrado | M10: Calado conjugado | N10: Impulsión | O10: x para dibujo
A11: y | B11: p | C11: S | D11: Rh | E11: v | F11: H | G11: I | H11: DH | I11: Im | J11: Dx | K11: x | L11: F2 | M11: ycong | N11: N | O11: Xdib
A12: =F7 -> 0.7415327354 | B12: =$F$3+2*A12 -> 7.483065471 | C12: =$F$3*A12 -> 4.449196412 | D12: =C12/B12 -> 0.5945686871 | E12: =$F$4/C12 -> 2.697116263 | F12: =A12+E12^2/2/$M$4 -> 1.112299103 | G12: =$F$5^2*E12^2/D12^(4/3) -> 0.001760551206 | H12: H1-H2 | I12: (I1+I2)/2 | J12: DH/(Im-I0) | K12: 0 | L12: =E12^2/$M$4/A12 -> 1 | M12: =A12/2*(SQRT(1+8*L12)-1) -> 0.7415327354 | N12: =$M$3*$F$4*E12+$F$3*$M$3*$M$4*A12^2/2 -> 48548.09273 | O12: =$F$9+K12 -> 0 | Q12: y | R12: =TRANSPOSE(A12:A17) -> 0.7415327354 | S12: 0.7355052489 | T12: 0.7294777624 | U12: 0.723450276 | V12: 0.7174227895 | W12: 0.711395303
A13: =A12+$M$9 -> 0.7355052489 | B13: =$F$3+2*A13 -> 7.471010498 | C13: =$F$3*A13 -> 4.413031494 | D13: =C13/B13 -> 0.5906873635 | E13: =$F$4/C13 -> 2.719219207 | F13: =A13+E13^2/2/$M$4 -> 1.112373399 | G13: =$F$5^2*E13^2/D13^(4/3) -> 0.001805220411 | H13: =F12-F13 -> -7.429553381e-05 | I13: =(G12+G13)/2 -> 0.001782885809 | J13: =H13/(I13-$F$6) -> 0.3421956589 | K13: 0 | L13: =E13^2/$M$4/A13 -> 1.024787111 | M13: =A13/2*(SQRT(1+8*L13)-1) -> 0.7475930627 | N13: =$M$3*$F$4*E13+$F$3*$M$3*$M$4*A13^2/2 -> 48551.31788 | O13: =$F$9+K13 -> 0 | Q13: x | R13: =TRANSPOSE(O12:O17) -> 0 | S13: 0 | T13: 0 | U13: 0 | V13: 0 | W13: 0
A14: 0.7294777624 | B14: 7.458955525 | C14: 4.376866575 | D14: 0.5867934941 | E14: 2.741687414 | F14: 1.112599571 | G14: 0.001851430982 | H14: =F13-F14 -> -0.0002261719135 | I14: =(G13+G14)/2 -> 0.001828325696 | J14: =H14/(I14-$F$6) -> 1.317447683 | K14: 0 | L14: 1.050400239 | M14: 0.7537197943 | N14: 48561.06459 | O14: 0
A15: 0.723450276 | B15: 7.446900552 | C15: 4.340701656 | D15: 0.582887018 | E15: 2.764530012 | F15: 1.112982701 | G15: 0.001899250042 | H15: -0.0003831308037 | I15: 0.001875340512 | J15: 3.073418709 | K15: 0 | L15: 1.076874081 | M15: 0.7599140367 | N15: 48577.44242 | O15: 0
A16: 0.7174227895 | B16: 7.434845579 | C16: 4.304536737 | D16: 0.5789678738 | E16: 2.787756438 | F16: 1.113528088 | G16: 0.001948748246 | H16: -0.0005453866032 | I16: 0.001923999144 | J16: 7.176058651 | K16: 0 | L16: 1.104245096 | M16: 0.7661769275 | N16: 48600.56461 | O16: 0
A17: =A16+$M$9 -> 0.711395303 | B17: 7.422790606 | C17: 4.268371818 | D17: 0.5750359999 | E17: 2.811376448 | F17: 1.114241253 | G17: 0.002 | H17: -0.0007131646562 | I17: 0.001974374123 | J17: 27.82986318 | K17: 0 | L17: 1.132551615 | M17: 0.7725096366 | N17: 48630.54822 | O17: 0
